[Event "Titled Tuesday Blitz August 1 Early 2023"]
[White "Kazakov, Mikhail"]
[Black "Shukhman, Anna"]
[WhiteFideId "14102749"]
[BlackFideId "54180058"]
[WhiteElo "2431"]
[BlackElo "2571"]
[Result "0-1"]
[Round "11"]
[TimeControl "180+1"]
[Date "2023.08.01"]
[WhiteClock "0:00:50"]
[BlackClock "0:01:46"]
[Board "103"]

1. d4 {[%clk 0:02:52]}  Nf6 {[%clk 0:02:58]} 2. c4 {[%clk 0:02:51]}  g6 {[%clk 0:02:58]} 3. Nc3 {[%clk 0:02:50]}  d5 {[%clk 0:02:59]} 4. cxd5 {[%clk 0:02:44]}  Nxd5 {[%clk 0:03:00]} 5. e4 {[%clk 0:02:43]}  Nxc3 {[%clk 0:03:00]} 6. bxc3 {[%clk 0:02:43]}  Bg7 {[%clk 0:03:01]} 7. Be3 {[%clk 0:02:43]}  c5 {[%clk 0:03:00]} 8. Qd2 {[%clk 0:02:43]}  O-O {[%clk 0:02:58]} 9. Nf3 {[%clk 0:02:42]}  Qa5 {[%clk 0:02:56]} 10. Rc1 {[%clk 0:02:40]}  Bg4 {[%clk 0:02:44]} 11. Be2 {[%clk 0:02:35]}  Bxf3 {[%clk 0:02:39]} 12. Bxf3 {[%clk 0:02:33]}  cxd4 {[%clk 0:02:39]} 13. cxd4 {[%clk 0:02:32]}  Qxd2+ {[%clk 0:02:39]} 14. Kxd2 {[%clk 0:02:32]}  Nc6 {[%clk 0:02:37]} 15. d5 {[%clk 0:02:23]}  Rfd8 {[%clk 0:02:36]} 16. Ke2 {[%clk 0:02:13]}  Nd4+ {[%clk 0:02:35]} 17. Bxd4 {[%clk 0:02:05]}  Bxd4 {[%clk 0:02:36]} 18. Rc7 {[%clk 0:02:06]}  Bf6 {[%clk 0:02:21]} 19. Rxb7 {[%clk 0:01:57]}  Rac8 {[%clk 0:02:21]} 20. Rd1 {[%clk 0:01:56]}  a5 {[%clk 0:02:10]} 21. Rd2 {[%clk 0:01:48]}  Rc1 {[%clk 0:02:07]} 22. g3 {[%clk 0:01:43]}  Rdc8 {[%clk 0:01:57]} 23. e5 {[%clk 0:01:35]}  Bxe5 {[%clk 0:01:54]} 24. Rxe7 {[%clk 0:01:35]}  Bc3 {[%clk 0:01:54]} 25. Rd1 {[%clk 0:01:30]}  Bb4 {[%clk 0:01:52]} 26. Rxc1 {[%clk 0:01:26]}  Rxc1 {[%clk 0:01:53]} 27. Re8+ {[%clk 0:01:22]}  Kg7 {[%clk 0:01:53]} 28. Kd3 {[%clk 0:01:05]}  Rc3+ {[%clk 0:01:48]} 29. Kd4 {[%clk 0:00:50]}  Rxf3 {[%clk 0:01:46]} 0-1


[Site "https://www.chess.com"]

[Event "Titled Tuesday Blitz August 1 Early 2023"]
[White "Hajiyev, Kanan"]
[Black "Al Mukhaini, Shima"]
[WhiteFideId "13404148"]
[BlackFideId "22005854"]
[WhiteElo "2543"]
[BlackElo "2420"]
[Result "0-1"]
[Round "11"]
[TimeControl "180+1"]
[Date "2023.08.01"]
[WhiteClock "0:00:35"]
[BlackClock "0:00:26"]
[Board "104"]

1. d4 {[%clk 0:03:00]}  Nf6 {[%clk 0:02:56]} 2. Nf3 {[%clk 0:03:01]}  e6 {[%clk 0:02:55]} 3. c4 {[%clk 0:03:02]}  d5 {[%clk 0:02:55]} 4. cxd5 {[%clk 0:03:02]}  exd5 {[%clk 0:02:55]} 5. Nc3 {[%clk 0:03:03]}  c6 {[%clk 0:02:56]} 6. Qc2 {[%clk 0:03:03]}  Bd6 {[%clk 0:02:56]} 7. Bg5 {[%clk 0:03:04]}  O-O {[%clk 0:02:56]} 8. e3 {[%clk 0:03:03]}  h6 {[%clk 0:02:56]} 9. Bh4 {[%clk 0:03:03]}  Re8 {[%clk 0:02:56]} 10. Bd3 {[%clk 0:03:03]}  Nbd7 {[%clk 0:02:57]} 11. O-O {[%clk 0:03:04]}  Nf8 {[%clk 0:02:50]} 12. Rab1 {[%clk 0:03:04]}  Ne6 {[%clk 0:02:48]} 13. Ne5 {[%clk 0:03:03]}  Qc7 {[%clk 0:02:46]} 14. f4 {[%clk 0:03:03]}  Nd7 {[%clk 0:02:40]} 15. Nxf7 {[%clk 0:02:57]}  Kxf7 {[%clk 0:02:39]} 16. Bg6+ {[%clk 0:02:58]}  Kf8 {[%clk 0:02:37]} 17. Bxe8 {[%clk 0:02:58]}  Kxe8 {[%clk 0:02:37]} 18. Qg6+ {[%clk 0:02:59]}  Kf8 {[%clk 0:02:31]} 19. f5 {[%clk 0:03:00]}  Bxh2+ {[%clk 0:02:23]} 20. Kh1 {[%clk 0:03:00]}  Ng5 {[%clk 0:02:23]} 21. Bxg5 {[%clk 0:02:37]}  hxg5 {[%clk 0:02:22]} 22. e4 {[%clk 0:02:37]}  dxe4 {[%clk 0:02:11]} 23. Nxe4 {[%clk 0:02:37]}  Nf6 {[%clk 0:02:07]} 24. Nxf6 {[%clk 0:02:30]}  gxf6 {[%clk 0:02:06]} 25. Qxf6+ {[%clk 0:02:30]}  Qf7 {[%clk 0:02:04]} 26. Qh8+ {[%clk 0:02:24]}  Ke7 {[%clk 0:01:58]} 27. Rbe1+ {[%clk 0:02:11]}  Kd7 {[%clk 0:01:56]} 28. Kxh2 {[%clk 0:02:02]}  b6 {[%clk 0:01:52]} 29. f6 {[%clk 0:02:02]}  Bb7 {[%clk 0:01:47]} 30. Re7+ {[%clk 0:02:00]}  Qxe7 {[%clk 0:01:46]} 31. Qg7 {[%clk 0:01:12]}  Qxg7 {[%clk 0:01:39]} 32. fxg7 {[%clk 0:01:12]}  Ke7 {[%clk 0:01:28]} 33. Kg3 {[%clk 0:01:10]}  Rg8 {[%clk 0:01:27]} 34. Kg4 {[%clk 0:01:07]}  Rxg7 {[%clk 0:01:26]} 35. Re1+ {[%clk 0:01:05]}  Kd6 {[%clk 0:01:25]} 36. Kf5 {[%clk 0:01:04]}  g4 {[%clk 0:01:18]} 37. Kf6 {[%clk 0:01:04]}  Rg8 {[%clk 0:01:14]} 38. Kf7 {[%clk 0:01:02]}  Rg5 {[%clk 0:01:10]} 39. Kf6 {[%clk 0:00:58]}  Rh5 {[%clk 0:01:05]} 40. Re5 {[%clk 0:00:48]}  Rh2 {[%clk 0:00:58]} 41. Re2 {[%clk 0:00:42]}  g3 {[%clk 0:00:39]} 42. Kg5 {[%clk 0:00:40]}  c5 {[%clk 0:00:37]} 43. dxc5+ {[%clk 0:00:40]}  Kxc5 {[%clk 0:00:37]} 44. Kf4 {[%clk 0:00:36]}  Rxg2 {[%clk 0:00:36]} 45. Re7 {[%clk 0:00:37]}  Bc6 {[%clk 0:00:34]} 46. Rxa7 {[%clk 0:00:35]}  Rg1 {[%clk 0:00:29]} 47. Rc7 {[%clk 0:00:30]}  g2 {[%clk 0:00:28]} 48. b4+ {[%clk 0:00:30]}  Kd6 {[%clk 0:00:27]} 49. Rg7 {[%clk 0:00:29]}  Rf1+ {[%clk 0:00:27]} 50. Ke3 {[%clk 0:00:30]}  g1=Q+ {[%clk 0:00:28]} 51. Rxg1 {[%clk 0:00:30]}  Rxg1 {[%clk 0:00:29]} 52. Kd4 {[%clk 0:00:30]}  Ra1 {[%clk 0:00:27]} 53. b5 {[%clk 0:00:29]}  Bxb5 {[%clk 0:00:27]} 54. Kc3 {[%clk 0:00:30]}  Rxa2 {[%clk 0:00:26]} 55. Kb4 {[%clk 0:00:31]}  Rb2+ {[%clk 0:00:25]} 56. Ka3 {[%clk 0:00:31]}  Rb1 {[%clk 0:00:26]} 57. Ka2 {[%clk 0:00:31]}  Bd3 {[%clk 0:00:26]} 58. Ka3 {[%clk 0:00:32]}  Kc5 {[%clk 0:00:26]} 59. Ka2 {[%clk 0:00:33]}  Kc4 {[%clk 0:00:26]} 60. Ka3 {[%clk 0:00:34]}  b5 {[%clk 0:00:25]} 61. Ka2 {[%clk 0:00:35]}  Kc3 {[%clk 0:00:25]} 62. Ka3 {[%clk 0:00:35]}  Ra1# {[%clk 0:00:26]} 0-1


[Site "https://www.chess.com"]

[Event "Titled Tuesday Blitz August 1 Early 2023"]
[White "Ganiev, Roman"]
[Black "Llanos, Guillermo"]
[WhiteFideId "4131452"]
[BlackFideId "100358"]
[WhiteElo "2524"]
[BlackElo "2386"]
[Result "0-1"]
[Round "11"]
[TimeControl "180+1"]
[Date "2023.08.01"]
[WhiteClock "0:00:00"]
[BlackClock "0:00:13"]
[Board "106"]

1. e4 {[%clk 0:03:00]}  Nf6 {[%clk 0:02:59]} 2. e5 {[%clk 0:03:00]}  Nd5 {[%clk 0:02:58]} 3. c4 {[%clk 0:03:01]}  Nb6 {[%clk 0:02:58]} 4. d4 {[%clk 0:03:02]}  d6 {[%clk 0:02:58]} 5. exd6 {[%clk 0:03:03]}  cxd6 {[%clk 0:02:58]} 6. Nc3 {[%clk 0:03:02]}  g6 {[%clk 0:02:58]} 7. Be3 {[%clk 0:03:02]}  Bg7 {[%clk 0:02:58]} 8. Rc1 {[%clk 0:03:03]}  O-O {[%clk 0:02:58]} 9. Be2 {[%clk 0:02:59]}  d5 {[%clk 0:02:37]} 10. c5 {[%clk 0:02:57]}  Nc4 {[%clk 0:02:37]} 11. Bxc4 {[%clk 0:02:51]}  dxc4 {[%clk 0:02:36]} 12. Nge2 {[%clk 0:02:46]}  Bf5 {[%clk 0:02:35]} 13. O-O {[%clk 0:02:39]}  Bd3 {[%clk 0:02:32]} 14. Re1 {[%clk 0:02:37]}  Nc6 {[%clk 0:02:31]} 15. d5 {[%clk 0:01:26]}  Nb4 {[%clk 0:02:26]} 16. Nf4 {[%clk 0:01:00]}  Bxc3 {[%clk 0:02:23]} 17. Rxc3 {[%clk 0:00:35]}  Nxd5 {[%clk 0:02:23]} 18. Nxd5 {[%clk 0:00:32]}  Qxd5 {[%clk 0:02:23]} 19. b3 {[%clk 0:00:32]}  Rad8 {[%clk 0:01:41]} 20. bxc4 {[%clk 0:00:19]}  Bxc4 {[%clk 0:01:41]} 21. Qa4 {[%clk 0:00:08]}  Ba6 {[%clk 0:01:24]} 22. h4 {[%clk 0:00:05]}  Rfe8 {[%clk 0:01:21]} 23. c6 {[%clk 0:00:06]}  Bb5 {[%clk 0:01:19]} 24. Qxa7 {[%clk 0:00:02]}  Bxc6 {[%clk 0:01:19]} 25. f3 {[%clk 0:00:03]}  Ra8 {[%clk 0:01:16]} 26. Qd4 {[%clk 0:00:01]}  Qxd4 {[%clk 0:01:11]} 27. Bxd4 {[%clk 0:00:02]}  Rxa2 {[%clk 0:01:11]} 28. Rce3 {[%clk 0:00:03]}  e6 {[%clk 0:01:08]} 29. Bf6 {[%clk 0:00:03]}  h5 {[%clk 0:01:06]} 30. Rd3 {[%clk 0:00:03]}  Ra5 {[%clk 0:01:05]} 31. Red1 {[%clk 0:00:03]}  Rf5 {[%clk 0:01:02]} 32. Bb2 {[%clk 0:00:03]}  Rd5 {[%clk 0:00:59]} 33. Rxd5 {[%clk 0:00:03]}  Bxd5 {[%clk 0:00:59]} 34. Bf6 {[%clk 0:00:04]}  Rc8 {[%clk 0:00:58]} 35. Ra1 {[%clk 0:00:03]}  Kf8 {[%clk 0:00:58]} 36. Kf2 {[%clk 0:00:03]}  Ke8 {[%clk 0:00:58]} 37. Ke3 {[%clk 0:00:04]}  Kd7 {[%clk 0:00:58]} 38. g4 {[%clk 0:00:04]}  hxg4 {[%clk 0:00:56]} 39. fxg4 {[%clk 0:00:05]}  Rc4 {[%clk 0:00:55]} 40. h5 {[%clk 0:00:05]}  Rxg4 {[%clk 0:00:51]} 41. h6 {[%clk 0:00:05]}  Rg3+ {[%clk 0:00:51]} 42. Kf4 {[%clk 0:00:05]}  Rh3 {[%clk 0:00:51]} 43. Bg7 {[%clk 0:00:05]}  Rh5 {[%clk 0:00:48]} 44. Ra8 {[%clk 0:00:04]}  f6 {[%clk 0:00:45]} 45. Rf8 {[%clk 0:00:03]}  e5+ {[%clk 0:00:44]} 46. Ke3 {[%clk 0:00:04]}  f5 {[%clk 0:00:42]} 47. Rh8 {[%clk 0:00:03]}  f4+ {[%clk 0:00:42]} 48. Kf2 {[%clk 0:00:03]}  g5 {[%clk 0:00:34]} 49. Bxe5 {[%clk 0:00:02]}  Ke6 {[%clk 0:00:31]} 50. Bd4 {[%clk 0:00:02]}  Be4 {[%clk 0:00:28]} 51. Bg7 {[%clk 0:00:01]}  Kf5 {[%clk 0:00:28]} 52. Rf8+ {[%clk 0:00:01]}  Kg4 {[%clk 0:00:28]} 53. Re8 {[%clk 0:00:02]}  Bc2 {[%clk 0:00:25]} 54. Ke1 {[%clk 0:00:03]}  Rh2 {[%clk 0:00:24]} 55. Rf8 {[%clk 0:00:03]}  f3 {[%clk 0:00:23]} 56. Bd4 {[%clk 0:00:02]}  Rxh6 {[%clk 0:00:21]} 57. Kd2 {[%clk 0:00:01]}  Rh2+ {[%clk 0:00:20]} 58. Kc3 {[%clk 0:00:02]}  Be4 {[%clk 0:00:19]} 59. Be5 {[%clk 0:00:02]}  Rg2 {[%clk 0:00:18]} 60. Bd4 {[%clk 0:00:03]}  Bc6 {[%clk 0:00:18]} 61. Kb4 {[%clk 0:00:03]}  Kg3 {[%clk 0:00:18]} 62. Be5+ {[%clk 0:00:03]}  Kg4 {[%clk 0:00:17]} 63. Bd4 {[%clk 0:00:03]}  Re2 {[%clk 0:00:17]} 64. Kc3 {[%clk 0:00:03]}  Kg3 {[%clk 0:00:16]} 65. Bc5 {[%clk 0:00:03]}  g4 {[%clk 0:00:16]} 66. Bd6+ {[%clk 0:00:03]}  Kg2 {[%clk 0:00:16]} 67. Bc5 {[%clk 0:00:02]}  g3 {[%clk 0:00:15]} 68. Kd3 {[%clk 0:00:02]}  Ra2 {[%clk 0:00:14]} 69. Bb6 {[%clk 0:00:02]}  f2 {[%clk 0:00:14]} 70. Kc3 {[%clk 0:00:00]}  Bf3 {[%clk 0:00:13]} 0-1


[Site "https://www.chess.com"]

[Event "Titled Tuesday Blitz August 1 Early 2023"]
[White "Gueci, Tea"]
[Black "Kaplan, Avi Harrison"]
[WhiteFideId "872342"]
[BlackFideId "30934559"]
[WhiteElo "2351"]
[BlackElo "2489"]
[Result "1/2-1/2"]
[Round "11"]
[TimeControl "180+1"]
[Date "2023.08.01"]
[WhiteClock "0:00:11"]
[BlackClock "0:00:21"]
[Board "111"]

1. c4 {[%clk 0:03:00]}  Nf6 {[%clk 0:02:53]} 2. Nf3 {[%clk 0:02:58]}  g6 {[%clk 0:02:53]} 3. g3 {[%clk 0:02:58]}  b6 {[%clk 0:02:53]} 4. Bg2 {[%clk 0:02:58]}  Bb7 {[%clk 0:02:54]} 5. Nc3 {[%clk 0:02:59]}  Bg7 {[%clk 0:02:54]} 6. d3 {[%clk 0:02:59]}  O-O {[%clk 0:02:54]} 7. O-O {[%clk 0:02:59]}  c5 {[%clk 0:02:55]} 8. Rb1 {[%clk 0:02:57]}  d5 {[%clk 0:02:55]} 9. cxd5 {[%clk 0:02:55]}  Nxd5 {[%clk 0:02:56]} 10. Bd2 {[%clk 0:02:52]}  Nc6 {[%clk 0:02:51]} 11. Ne1 {[%clk 0:02:28]}  e5 {[%clk 0:02:41]} 12. Bxd5 {[%clk 0:02:21]}  Kh8 {[%clk 0:02:30]} 13. Bg2 {[%clk 0:02:13]}  f5 {[%clk 0:02:27]} 14. e3 {[%clk 0:02:07]}  f4 {[%clk 0:02:23]} 15. exf4 {[%clk 0:02:06]}  exf4 {[%clk 0:02:23]} 16. Bxf4 {[%clk 0:02:06]}  Qe7 {[%clk 0:02:17]} 17. Nd5 {[%clk 0:02:05]}  Qd7 {[%clk 0:02:14]} 18. Nc2 {[%clk 0:02:01]}  Rad8 {[%clk 0:01:57]} 19. Bg5 {[%clk 0:01:55]}  Rde8 {[%clk 0:01:48]} 20. Qd2 {[%clk 0:01:55]}  Ne5 {[%clk 0:01:46]} 21. Nce3 {[%clk 0:01:42]}  Ba8 {[%clk 0:01:39]} 22. f4 {[%clk 0:01:38]}  Nc6 {[%clk 0:01:36]} 23. Nc4 {[%clk 0:01:28]}  Nd4 {[%clk 0:01:33]} 24. Nc3 {[%clk 0:01:23]}  b5 {[%clk 0:01:24]} 25. Ne5 {[%clk 0:01:19]}  Qc7 {[%clk 0:01:11]} 26. Bxa8 {[%clk 0:01:14]}  Rxa8 {[%clk 0:01:12]} 27. Nd5 {[%clk 0:01:10]}  Qb7 {[%clk 0:01:09]} 28. Qg2 {[%clk 0:01:10]}  Ne6 {[%clk 0:01:02]} 29. Be7 {[%clk 0:00:56]}  Rfe8 {[%clk 0:00:50]} 30. Bf6 {[%clk 0:00:56]}  Bxf6 {[%clk 0:00:44]} 31. Nxf6 {[%clk 0:00:57]}  Qg7 {[%clk 0:00:45]} 32. Ne4 {[%clk 0:00:52]}  Rad8 {[%clk 0:00:43]} 33. Rfd1 {[%clk 0:00:50]}  Nd4 {[%clk 0:00:42]} 34. Nxc5 {[%clk 0:00:46]}  Rc8 {[%clk 0:00:42]} 35. Ne4 {[%clk 0:00:44]}  Rc2 {[%clk 0:00:42]} 36. Rd2 {[%clk 0:00:38]}  Rec8 {[%clk 0:00:42]} 37. h3 {[%clk 0:00:30]}  Rxd2 {[%clk 0:00:40]} 38. Nxd2 {[%clk 0:00:26]}  Rc2 {[%clk 0:00:40]} 39. Rd1 {[%clk 0:00:22]}  h5 {[%clk 0:00:37]} 40. Qa8+ {[%clk 0:00:23]}  Kh7 {[%clk 0:00:37]} 41. Qe4 {[%clk 0:00:20]}  Nf5 {[%clk 0:00:30]} 42. Ndf3 {[%clk 0:00:19]}  Nxg3 {[%clk 0:00:29]} 43. Ng5+ {[%clk 0:00:20]}  Kg8 {[%clk 0:00:26]} 44. Qd5+ {[%clk 0:00:19]}  Kh8 {[%clk 0:00:23]} 45. Nef7+ {[%clk 0:00:18]}  Qxf7 {[%clk 0:00:23]} 46. Nxf7+ {[%clk 0:00:18]}  Kg7 {[%clk 0:00:23]} 47. Ng5 {[%clk 0:00:17]}  Ne2+ {[%clk 0:00:23]} 48. Kf1 {[%clk 0:00:18]}  Ng3+ {[%clk 0:00:22]} 49. Kg1 {[%clk 0:00:16]}  Ne2+ {[%clk 0:00:22]} 50. Kh1 {[%clk 0:00:10]}  Ng3+ {[%clk 0:00:21]} 51. Kg1 {[%clk 0:00:11]} 1/2-1/2


[Site "https://www.chess.com"]

[Event "Titled Tuesday Blitz August 1 Early 2023"]
[White "Vidruska, Renate"]
[Black "Gaal, Zsoka"]
[WhiteFideId "11601841"]
[BlackFideId "777765"]
[WhiteElo "2286"]
[BlackElo "2473"]
[Result "1/2-1/2"]
[Round "11"]
[TimeControl "180+1"]
[Date "2023.08.01"]
[WhiteClock "0:00:38"]
[BlackClock "0:00:05"]
[Board "114"]

1. e4 {[%clk 0:02:58]}  e5 {[%clk 0:02:59]} 2. Nf3 {[%clk 0:02:57]}  d6 {[%clk 0:02:59]} 3. Nc3 {[%clk 0:02:54]}  Nf6 {[%clk 0:02:59]} 4. d4 {[%clk 0:02:54]}  exd4 {[%clk 0:03:00]} 5. Nxd4 {[%clk 0:02:53]}  g6 {[%clk 0:03:00]} 6. Bf4 {[%clk 0:02:50]}  Bg7 {[%clk 0:03:00]} 7. Qd2 {[%clk 0:02:50]}  Nc6 {[%clk 0:02:58]} 8. Nxc6 {[%clk 0:02:50]}  bxc6 {[%clk 0:02:59]} 9. O-O-O {[%clk 0:02:50]}  Bb7 {[%clk 0:02:42]} 10. f3 {[%clk 0:02:47]}  Nd7 {[%clk 0:02:42]} 11. h4 {[%clk 0:02:43]}  Qe7 {[%clk 0:02:43]} 12. h5 {[%clk 0:02:42]}  O-O-O {[%clk 0:02:42]} 13. Be3 {[%clk 0:02:39]}  Kb8 {[%clk 0:02:41]} 14. Bc4 {[%clk 0:02:37]}  Ne5 {[%clk 0:02:31]} 15. Bb3 {[%clk 0:02:35]}  c5 {[%clk 0:02:24]} 16. Nd5 {[%clk 0:02:30]}  Bxd5 {[%clk 0:02:14]} 17. Bxd5 {[%clk 0:02:29]}  c6 {[%clk 0:02:13]} 18. Bb3 {[%clk 0:02:29]}  c4 {[%clk 0:02:12]} 19. Ba4 {[%clk 0:02:29]}  Qb7 {[%clk 0:02:10]} 20. Bd4 {[%clk 0:02:17]}  Qa6 {[%clk 0:01:52]} 21. b3 {[%clk 0:02:16]}  c5 {[%clk 0:01:38]} 22. Bc3 {[%clk 0:02:11]}  cxb3 {[%clk 0:01:22]} 23. cxb3 {[%clk 0:02:09]}  Nc4 {[%clk 0:01:05]} 24. bxc4 {[%clk 0:02:06]}  Bxc3 {[%clk 0:01:04]} 25. Qxc3 {[%clk 0:01:59]}  Qxa4 {[%clk 0:01:05]} 26. Qb3+ {[%clk 0:02:00]}  Qxb3 {[%clk 0:01:04]} 27. axb3 {[%clk 0:02:00]}  Kc7 {[%clk 0:01:03]} 28. Kc2 {[%clk 0:02:00]}  g5 {[%clk 0:00:51]} 29. g4 {[%clk 0:01:59]}  h6 {[%clk 0:00:51]} 30. Ra1 {[%clk 0:01:58]}  Kb6 {[%clk 0:00:45]} 31. Kc3 {[%clk 0:01:57]}  Rb8 {[%clk 0:00:45]} 32. Rhd1 {[%clk 0:01:56]}  Rhd8 {[%clk 0:00:44]} 33. Rd5 {[%clk 0:01:55]}  Rb7 {[%clk 0:00:44]} 34. Rad1 {[%clk 0:01:54]}  Kc6 {[%clk 0:00:41]} 35. e5 {[%clk 0:01:52]}  Rbd7 {[%clk 0:00:37]} 36. exd6 {[%clk 0:01:48]}  Rxd6 {[%clk 0:00:38]} 37. Rxd6+ {[%clk 0:01:48]}  Rxd6 {[%clk 0:00:39]} 38. Ra1 {[%clk 0:01:42]}  Re6 {[%clk 0:00:23]} 39. Kd3 {[%clk 0:01:41]}  Kb6 {[%clk 0:00:22]} 40. Kd2 {[%clk 0:01:34]}  Rd6+ {[%clk 0:00:21]} 41. Ke3 {[%clk 0:01:34]}  Rd4 {[%clk 0:00:20]} 42. Ra2 {[%clk 0:01:25]}  Rd1 {[%clk 0:00:20]} 43. Ke4 {[%clk 0:01:25]}  Rb1 {[%clk 0:00:12]} 44. Ra3 {[%clk 0:01:23]}  Re1+ {[%clk 0:00:09]} 45. Kd3 {[%clk 0:01:18]}  Rd1+ {[%clk 0:00:07]} 46. Ke4 {[%clk 0:01:18]}  Rd4+ {[%clk 0:00:07]} 47. Ke3 {[%clk 0:01:18]}  f6 {[%clk 0:00:04]} 48. Ra2 {[%clk 0:01:16]}  Rd1 {[%clk 0:00:04]} 49. Ra3 {[%clk 0:01:14]}  Rd4 {[%clk 0:00:03]} 50. Ra1 {[%clk 0:01:12]}  Kb7 {[%clk 0:00:03]} 51. Ra5 {[%clk 0:01:06]}  Kb6 {[%clk 0:00:02]} 52. Ra3 {[%clk 0:01:02]}  a6 {[%clk 0:00:03]} 53. Ra2 {[%clk 0:01:02]}  Rd1 {[%clk 0:00:02]} 54. Ra3 {[%clk 0:01:00]}  Re1+ {[%clk 0:00:03]} 55. Kd3 {[%clk 0:00:58]}  Rf1 {[%clk 0:00:03]} 56. Ke3 {[%clk 0:00:59]}  Rd1 {[%clk 0:00:03]} 57. Ke4 {[%clk 0:00:57]}  Rd4+ {[%clk 0:00:03]} 58. Ke3 {[%clk 0:00:58]}  Rf4 {[%clk 0:00:04]} 59. Ke2 {[%clk 0:00:58]}  f5 {[%clk 0:00:05]} 60. gxf5 {[%clk 0:00:52]}  Rxf5 {[%clk 0:00:05]} 61. Ke3 {[%clk 0:00:53]}  Rf4 {[%clk 0:00:06]} 62. Ra2 {[%clk 0:00:46]}  Rh4 {[%clk 0:00:06]} 63. Rd2 {[%clk 0:00:47]}  Rxh5 {[%clk 0:00:07]} 64. Rd6+ {[%clk 0:00:48]}  Ka5 {[%clk 0:00:07]} 65. Rc6 {[%clk 0:00:46]}  Kb4 {[%clk 0:00:08]} 66. Rb6+ {[%clk 0:00:46]}  Kc3 {[%clk 0:00:07]} 67. Ke4 {[%clk 0:00:43]}  Rh3 {[%clk 0:00:06]} 68. f4 {[%clk 0:00:41]}  gxf4 {[%clk 0:00:07]} 69. Kxf4 {[%clk 0:00:41]}  h5 {[%clk 0:00:07]} 70. Kg5 {[%clk 0:00:39]}  Kc2 {[%clk 0:00:07]} 71. b4 {[%clk 0:00:38]}  cxb4 {[%clk 0:00:06]} 72. Rxb4 {[%clk 0:00:39]}  Kc3 {[%clk 0:00:04]} 73. Ra4 {[%clk 0:00:39]}  Kd4 {[%clk 0:00:03]} 74. Rxa6 {[%clk 0:00:38]}  Kxc4 {[%clk 0:00:04]} 75. Rh6 {[%clk 0:00:38]}  Kd4 {[%clk 0:00:04]} 76. Rxh5 {[%clk 0:00:39]}  Rxh5+ {[%clk 0:00:05]} 77. Kxh5 {[%clk 0:00:38]} 1/2-1/2


[Site "https://www.chess.com"]

[Event "Titled Tuesday Blitz August 1 Early 2023"]
[White "Daniel_Salinas"]
[Black "Kayis, Gulcan Sena"]
[BlackFideId "34553045"]
[WhiteElo "2280"]
[BlackElo "2454"]
[Result "1-0"]
[Round "11"]
[TimeControl "180+1"]
[Date "2023.08.01"]
[WhiteClock "0:00:08"]
[BlackClock "0:00:09"]
[Board "115"]

1. d4 {[%clk 0:03:00]}  d5 {[%clk 0:02:59]} 2. c4 {[%clk 0:03:00]}  c6 {[%clk 0:02:59]} 3. Nf3 {[%clk 0:03:00]}  Nf6 {[%clk 0:02:59]} 4. g3 {[%clk 0:03:01]}  Bg4 {[%clk 0:02:57]} 5. Ne5 {[%clk 0:03:00]}  Bf5 {[%clk 0:02:57]} 6. Bg2 {[%clk 0:02:58]}  Nbd7 {[%clk 0:02:55]} 7. O-O {[%clk 0:02:56]}  e6 {[%clk 0:02:54]} 8. Nc3 {[%clk 0:02:54]}  Be7 {[%clk 0:02:54]} 9. Qb3 {[%clk 0:02:50]}  Qc8 {[%clk 0:02:48]} 10. Bf4 {[%clk 0:02:47]}  O-O {[%clk 0:02:46]} 11. Rac1 {[%clk 0:02:47]}  Nxe5 {[%clk 0:02:40]} 12. dxe5 {[%clk 0:02:40]}  dxc4 {[%clk 0:02:38]} 13. Qxc4 {[%clk 0:02:36]}  Nd7 {[%clk 0:02:37]} 14. Rfd1 {[%clk 0:02:27]}  Nb6 {[%clk 0:02:35]} 15. Qb3 {[%clk 0:02:25]}  Rd8 {[%clk 0:02:34]} 16. a4 {[%clk 0:02:17]}  Bg6 {[%clk 0:02:25]} 17. a5 {[%clk 0:02:11]}  Rxd1+ {[%clk 0:02:25]} 18. Qxd1 {[%clk 0:02:03]}  Nd7 {[%clk 0:02:15]} 19. a6 {[%clk 0:02:00]}  bxa6 {[%clk 0:02:14]} 20. Na4 {[%clk 0:01:52]}  Rb8 {[%clk 0:01:56]} 21. Rxc6 {[%clk 0:01:51]}  Qe8 {[%clk 0:01:51]} 22. Rxa6 {[%clk 0:01:49]}  Nc5 {[%clk 0:01:47]} 23. Rxa7 {[%clk 0:01:34]}  Nxa4 {[%clk 0:01:45]} 24. Qxa4 {[%clk 0:01:33]}  Qxa4 {[%clk 0:01:38]} 25. Rxa4 {[%clk 0:01:34]}  Rxb2 {[%clk 0:01:35]} 26. Ra8+ {[%clk 0:01:34]}  Bf8 {[%clk 0:01:34]} 27. Bg5 {[%clk 0:01:28]}  Rb1+ {[%clk 0:01:23]} 28. Bf1 {[%clk 0:01:28]}  Be4 {[%clk 0:01:17]} 29. Rc8 {[%clk 0:01:03]}  Rb7 {[%clk 0:01:15]} 30. Bc1 {[%clk 0:00:53]}  Ra7 {[%clk 0:00:43]} 31. Be3 {[%clk 0:00:47]}  Ra5 {[%clk 0:00:33]} 32. Bb6 {[%clk 0:00:47]}  Rb5 {[%clk 0:00:30]} 33. Bd8 {[%clk 0:00:43]}  Rb7 {[%clk 0:00:27]} 34. Bc7 {[%clk 0:00:44]}  f6 {[%clk 0:00:22]} 35. Bd6 {[%clk 0:00:42]}  Rf7 {[%clk 0:00:21]} 36. Bh3 {[%clk 0:00:31]}  f5 {[%clk 0:00:20]} 37. f3 {[%clk 0:00:27]}  Bd5 {[%clk 0:00:19]} 38. e4 {[%clk 0:00:25]}  fxe4 {[%clk 0:00:19]} 39. fxe4 {[%clk 0:00:24]}  Bb3 {[%clk 0:00:18]} 40. Re8 {[%clk 0:00:07]}  g6 {[%clk 0:00:17]} 41. Bxe6 {[%clk 0:00:06]}  Bxe6 {[%clk 0:00:16]} 42. Rxe6 {[%clk 0:00:07]}  Kg7 {[%clk 0:00:15]} 43. Rf6 {[%clk 0:00:03]}  Rxf6 {[%clk 0:00:12]} 44. exf6+ {[%clk 0:00:03]}  Kf7 {[%clk 0:00:12]} 45. Bxf8 {[%clk 0:00:04]}  Kxf8 {[%clk 0:00:13]} 46. Kf2 {[%clk 0:00:04]}  Kf7 {[%clk 0:00:13]} 47. e5 {[%clk 0:00:05]}  g5 {[%clk 0:00:12]} 48. Kf3 {[%clk 0:00:05]}  Ke6 {[%clk 0:00:13]} 49. Kg4 {[%clk 0:00:05]}  h6 {[%clk 0:00:13]} 50. Kh5 {[%clk 0:00:05]}  Kf7 {[%clk 0:00:12]} 51. Kxh6 {[%clk 0:00:05]}  Kf8 {[%clk 0:00:10]} 52. Kxg5 {[%clk 0:00:05]}  Kf7 {[%clk 0:00:10]} 53. Kf5 {[%clk 0:00:06]}  Kf8 {[%clk 0:00:10]} 54. e6 {[%clk 0:00:07]}  Ke8 {[%clk 0:00:11]} 55. Kg6 {[%clk 0:00:07]}  Kf8 {[%clk 0:00:11]} 56. f7 {[%clk 0:00:07]}  Ke7 {[%clk 0:00:09]} 57. Kg7 {[%clk 0:00:08]} 1-0


[Site "https://www.chess.com"]